fUSD/lending_fUSD_20260319
["ID","MTS","AMOUNT","RATE_DAILY","PERIOD"]
[408576646,1773901582278,200.0,0.0001,2]
[408576647,1773901583780,200.0,0.0001,2]
[408576648,1773901598090,38403.9704,9.955e-05,2]
[408576649,1773901604529,2500.0,9.955e-05,2]
[408576650,1773901633810,600.0,9.7e-05,3]
[408576651,1773901635902,1200.0,9.8e-05,3]
[408576652,1773901638792,1900.0,9.9e-05,3]
[408576653,1773901643161,2500.0,0.0001,3]
[408576654,1773901644698,307.22604522,9.961e-05,2]
[408576655,1773901645655,259.87,9.373e-05,2]
[408576656,1773901698560,4247.57,9.313e-05,2]
[408576657,1773901714857,18702.0,0.0001,2]
[408576658,1773901738711,181131.90939622,9.5e-05,3]
[408576659,1773901739540,10221.48977739,0.0001,2]
[408576660,1773901741207,348.11023637,0.0001,2]
[408576661,1773901750331,-165.63388253,0.00010045,2]
[408576662,1773901750352,-2334.9248715,0.00010046,2]
[408576663,1773901768356,2500.0,9.955e-05,2]
[408576664,1773901802802,10000.01,9.955e-05,2]
[408576665,1773901802836,235620.74224142,9.955e-05,2]
[408576666,1773901802890,1254379.24775858,9.955e-05,2]
[408576667,1773901805322,300.0,9.955e-05,3]
[408576678,1773901832269,-165.63388253,0.00010045,2]
[408576679,1773901832279,-233.0,0.00010046,2]
[408576680,1773901832291,-250.0,0.00010046,2]
[408576681,1773901832302,-2665.0751285,0.00010046,2]
[408576682,1773901832313,-300.0,0.00010047,2]
[408576683,1773901832324,-1200.0,0.00010048,2]
[408576684,1773901832335,-300.0,0.00010048,2]
[408576685,1773901832345,-1200.0,0.00010048,2]
[408576686,1773901832356,-150.0,0.00010048,2]
[408576687,1773901832367,-5000.0,0.00010049,2]
[408576688,1773901832378,-3973.49973503,0.00010049,2]
[408576689,1773901832389,-318.70845411,0.00010049,2]
[408576690,1773901832400,-200.0,0.00010049,2]
[408576691,1773901832410,-151.0,0.00010049,2]
[408576692,1773901832420,-151.0,0.00010049,2]
[408576693,1773901832431,-151.0,0.00010049,2]
[408576694,1773901832441,-151.0,0.00010049,2]
[408576695,1773901832451,-166.17394238,0.00010049,2]
[408576696,1773901832462,-151.0,0.00010049,2]
[408576697,1773901832472,-151.0,0.00010049,2]
[408576698,1773901832483,-151.0,0.00010049,2]
[408576699,1773901832494,-151.0,0.00010049,2]
[408576700,1773901832504,-151.0,0.00010049,2]
[408576701,1773901832514,-151.0,0.00010049,2]
[408576702,1773901832525,-151.0,0.00010049,2]
[408576703,1773901832535,-151.0,0.00010049,2]
[408576704,1773901832546,-295.10239621,0.00010049,2]
[408576705,1773901832557,-151.0,0.00010052,2]
[408576706,1773901832567,-151.0,0.00010052,2]
[408576707,1773901832578,-494.06954945,0.00010054,2]
[408576708,1773901832588,-1000.0,0.00010054,2]
[408576709,1773901832600,-500.0,0.00010054,2]
[408576710,1773901832611,-508.43954945,0.00010054,2]
[408576711,1773901832621,-228.2903642,0.00010054,2]
[408576712,1773901832632,-500.0,0.00010054,2]
[408576713,1773901832642,-500.0,0.00010054,2]
[408576714,1773901832653,-347.31787942,0.00010054,2]
[408576715,1773901832663,-308.56667881,0.00010054,2]
[408576716,1773901832675,-306.98088231,0.00010054,2]
[408576717,1773901832685,-500.0,0.00010054,2]
[408576718,1773901832696,-500.0,0.00010054,2]
[408576719,1773901832707,-500.0,0.00010054,2]
[408576720,1773901832719,-500.0,0.00010054,2]
[408576721,1773901832730,-500.0,0.00010054,2]
[408576722,1773901832740,-500.0,0.00010054,2]
[408576723,1773901832750,-500.0,0.00010054,2]
[408576724,1773901832761,-500.0,0.00010054,2]
[408576725,1773901832772,-500.0,0.00010054,2]
[408576726,1773901832783,-219.33521832,0.00010054,2]
[408576727,1773901832793,-500.0,0.00010054,2]
[408576728,1773901832803,-500.0,0.00010054,2]
[408576729,1773901832814,-500.0,0.00010054,2]
[408576730,1773901832824,-287.70846583,0.00010055,2]
[408576731,1773901832835,-1407.2576447,0.00010055,2]
[408576732,1773901832845,-200.0,0.00010055,2]
[408576733,1773901832855,-170854.15576228,0.00010055,2]
[408576734,1773901832872,-742.2918,0.00010055,2]
[408576735,1773901832885,-7011.15954504,0.00010055,2]
[408576736,1773901832899,-1589.04103324,0.00010055,2]
[408576741,1773901837988,-362.725244,0.00010055,2]
[408576742,1773901837999,-92779.04452162,0.00010055,2]
[408576743,1773901838054,-3543.75404796,0.00010055,2]
[408576744,1773901838116,-355.710055,0.00010055,2]
[408576748,1773901838554,-1439312.6682681,0.00010055,2]
[408576753,1773901840245,-783449.44972276,0.00010055,2]
[408576754,1773901840255,-150.99,0.00010061,2]
[408576755,1773901840264,-299.99,0.00010061,2]
[408576756,1773901840274,-9999.99,0.00010061,2]
[408576757,1773901840283,-9999.99,0.00010061,2]
[408576758,1773901840292,-19999.99,0.00010061,2]
[408576759,1773901840301,-9999.99,0.00010061,2]
[408576760,1773901840311,-999.99,0.00010061,2]
[408576761,1773901840322,-150.99,0.00010061,2]
[408576762,1773901840331,-1547.13,0.00010061,2]
[408576763,1773901840340,-500.0,0.00010061,2]
[408576764,1773901840349,-32974.6857,0.00010145,2]
[408576765,1773901840359,-1000.0,0.00010145,2]
[408576766,1773901840368,-200.0,0.00010156,2]
[408576767,1773901840378,-43297.08,0.0001016,2]
[408576768,1773901840388,-5533.0,0.000102,3]
[408576769,1773901840397,-4363.86,0.0001024,2]
[408576770,1773901840406,-200.0,0.00010257,2]
[408576771,1773901840416,-77927.40917088,0.000103,2]
[408576772,1773901840425,-500.0,0.00010335,2]
[408576773,1773901840434,-200.0,0.00010351,2]
[408576774,1773901840443,-200.0,0.0001036,2]
[408576775,1773901840453,-5533.0,0.000104,5]
[408576776,1773901840461,-373.0,0.00010523,2]
[408576777,1773901840471,-179.3325322,0.00010538,2]
[408576778,1773901840480,-619.0,0.00010543,2]
[408576779,1773901840489,-808.0,0.00010554,2]
[408576780,1773901840499,-200.0,0.00010597,2]
[408576781,1773901840509,-253.0,0.00010603,2]
[408576782,1773901840519,-500.0,0.00010609,2]
[408576783,1773901840528,-269.83423346,0.000107,2]
[408576784,1773901840537,-220789.58338736,0.00010701,2]
[408576785,1773901840546,-500.0,0.00010883,2]
[408576786,1773901840556,-304.77413082,0.00010951,2]
[408576787,1773901840565,-500.0,0.00010958,2]
[408576788,1773901840575,-500.0,0.00010958,3]
[408576789,1773901840584,-500.0,0.00010958,4]
[408576790,1773901840594,-500.0,0.00010958,5]
[408576791,1773901840604,-500.0,0.00010958,6]
[408576792,1773901840615,-500.0,0.00010958,7]
[408576793,1773901840625,-306.69216472,0.00010958,8]
[408576794,1773901840635,-150.0,0.00010959,2]
[408576795,1773901840644,-500.0,0.00010959,2]
[408576796,1773901840653,-281.02190875,0.00010959,2]
[408576797,1773901840663,-500.0,0.00010959,2]
[408576798,1773901840672,-500.0,0.00010959,2]
[408576799,1773901840681,-300.0,0.00011,2]
[408576800,1773901840690,-300.0,0.00011017,3]
[408576801,1773901840700,-5000.0,0.0001105,2]
[408576802,1773901840709,-5000.0,0.0001105,2]
[408576803,1773901840718,-300.0,0.0001105,2]
[408576804,1773901840727,-300.0,0.0001105,2]
[408576805,1773901840737,-300.0,0.0001105,2]
[408576806,1773901840746,-300.0,0.0001105,2]
[408576807,1773901840756,-305.74792599,0.0001105,2]
[408576808,1773901840765,-193.0,0.0001105,2]
[408576809,1773901840774,-250.0,0.00011051,2]
[408576810,1773901840784,-420.0,0.00011051,2]
[408576811,1773901840793,-420.0,0.00011052,2]
[408576812,1773901840803,-1680.0,0.00011053,2]
[408576813,1773901840813,-255.0,0.00011053,2]
[408576814,1773901840822,-12899.72705023,0.00011099,2]
[408576815,1773901840834,-12899.72705021,0.00011099,2]
[408576816,1773901840844,-12899.72705021,0.00011099,2]
[408576817,1773901840854,-28035.86921729,0.00011099,2]
[408576818,1773901840864,-28035.86921723,0.00011099,2]
[408576819,1773901840874,-28035.86921723,0.00011099,2]
[408576820,1773901840884,-200.0,0.00011145,2]
[408576821,1773901840894,-500.0,0.00011157,2]
[408576822,1773901840903,-500.0,0.00011431,2]
[408576823,1773901840913,-600.0,0.00011473,2]
[408576824,1773901840922,-320.0,0.00011488,2]
[408576825,1773901840932,-2550.93704737,0.00011507,2]
[408576826,1773901840941,-2550.93704737,0.00011507,2]
[408576827,1773901840951,-2550.93704737,0.00011507,2]
[408576828,1773901840960,-2550.93704738,0.00011507,2]
[408576829,1773901840970,-642.96678216,0.00011533,2]
[408576830,1773901840979,-28035.86921723,0.0001161,2]
[408576831,1773901840989,-150.0,0.00011622,2]
[408576832,1773901840999,-288.554882,0.00011623,2]
[408576833,1773901841008,-12899.72705021,0.0001167,2]
[408576834,1773901841019,-200.0,0.00011693,2]
[408576835,1773901841028,-500.0,0.00011705,2]
[408576836,1773901841038,-304.77413082,0.00011941,2]
[408576837,1773901841047,-503.4765885,0.00011979,2]
[408576838,1773901841057,-2443.5419716,0.00012049,2]
[408576839,1773901841066,-300.0,0.00012079,3]
[408576840,1773901841076,-3807.71,0.00012087,2]
[408576841,1773901841085,-9999.99,0.00012087,2]
[408576842,1773901841095,-10379.68,0.00012087,2]
[408576843,1773901841104,-587.0,0.00012156,2]
[408576844,1773901841114,-2351.0,0.00012158,2]
[408576845,1773901841123,-433.0,0.00012158,2]
[408576846,1773901841132,-28035.86921723,0.00012162,2]
[408576847,1773901841142,-200.0,0.00012241,2]
[408576848,1773901841151,-12899.72705021,0.00012242,2]
[408576849,1773901841161,-309.37821434,0.000125,2]
[408576850,1773901841170,-334.0,0.00012514,2]
[408576851,1773901841179,-28035.86921723,0.00012714,2]
[408576852,1773901841189,-200.0,0.00012789,2]
[408576853,1773901841198,-12899.72705021,0.00012813,2]
[408576854,1773901841208,-3200.0,0.000129,4]
[408576855,1773901841218,-304.77413082,0.00012931,2]
[408576856,1773901841227,-307.22604521,0.00012931,2]
[408576857,1773901841238,-202.089756,0.00012936,2]
[408576858,1773901841255,-209.921444,0.00012936,2]
[408576859,1773901841265,-5641.13925074,0.00013,2]
[408576860,1773901841274,-14223.38533073,0.00013,15]
[408576861,1773901841285,-442.29976081,0.00013,2]
[408576862,1773901841294,-1000.0,0.00013026,2]
[408576863,1773901841303,-172.177998,0.00013066,2]
[408576864,1773901841313,-172.177998,0.00013085,2]
[408576865,1773901841324,-160.0,0.00013085,2]
[408576866,1773901841334,-315.693524,0.00013085,2]
[408576867,1773901841343,-471.387049,0.00013085,2]
[408576868,1773901841352,-307.152491,0.00013117,2]
[408576869,1773901841363,-187.822083,0.0001312,2]
[408576870,1773901841373,-339.436611,0.0001312,2]
[408576871,1773901841579,-300.0,0.00013142,3]
[408576872,1773901841589,-241.25,0.000132,2]
[408576873,1773901841599,-1224.9,0.000132,2]
[408576874,1773901841607,-2023.98,0.000132,2]
[408576875,1773901841617,-278.55,0.000132,2]
[408576876,1773901841626,-2062.65,0.000132,2]
[408576877,1773901841636,-1958.08,0.000132,2]
[408576878,1773901841645,-2050.16,0.000132,2]
[408576879,1773901841654,-2022.26,0.000132,2]
[408576880,1773901841664,-2912.72,0.000132,2]
[408576881,1773901841673,-1599.5,0.000132,2]
[408576882,1773901841683,-1515.55,0.000132,2]
[408576883,1773901841692,-981.72,0.000132,2]
[408576884,1773901841702,-2760.66,0.000132,2]
[408576885,1773901841711,-1362.71,0.000132,2]
[408576886,1773901841721,-1338.65,0.000132,2]
[408576887,1773901841730,-441.32,0.000132,2]
[408576888,1773901841739,-461.33,0.000132,2]
[408576889,1773901841748,-924.6,0.000132,2]
[408576890,1773901841758,-1161.11,0.000132,2]
[408576891,1773901841767,-1641.36,0.000132,2]
[408576892,1773901841777,-2346.44,0.000132,2]
[408576893,1773901841786,-1175.98,0.000132,2]
[408576894,1773901841796,-834.67,0.000132,2]
[408576895,1773901841805,-293.99,0.000132,2]
[408576896,1773901841814,-2081.9,0.000132,2]
[408576897,1773901841824,-293.99,0.000132,2]
[408576898,1773901841834,-2079.86,0.000132,2]
[408576899,1773901841844,-293.99,0.000132,2]
[408576900,1773901841854,-654.33,0.000132,2]
[408576901,1773901841863,-293.99,0.000132,2]
[408576902,1773901841873,-2801.26,0.000132,2]
[408576903,1773901841882,-393.67,0.000132,2]
[408576904,1773901841892,-1476.12,0.000132,2]
[408576905,1773901841901,-2199.75,0.000132,2]
[408576906,1773901841910,-1869.97,0.000132,2]
[408576907,1773901841919,-2670.49,0.000132,2]
[408576908,1773901841929,-1194.75,0.000132,2]
[408576909,1773901841939,-28035.86921723,0.00013266,2]
[408576910,1773901841949,-500.0,0.00013277,2]
[408576911,1773901841958,-500.0,0.00013277,2]
[408576912,1773901841967,-8882.6885148,0.00013277,2]
[408576913,1773901841976,-500.0,0.00013277,2]
[408576914,1773901841986,-197.82587578,0.00013277,2]
[408576915,1773901841996,-500.0,0.00013277,2]
[408576916,1773901842005,-500.0,0.00013277,2]
[408576917,1773901842014,-500.0,0.00013277,2]
[408576918,1773901842024,-250.0,0.00013277,2]
[408576919,1773901842034,-500.0,0.00013277,2]
[408576920,1773901842043,-250.0,0.00013277,2]
[408576921,1773901842053,-250.0,0.00013277,2]
[408576922,1773901842063,-250.0,0.00013277,2]
[408576923,1773901842073,-250.0,0.00013277,2]
[408576924,1773901842083,-250.0,0.00013277,2]
[408576925,1773901842092,-500.0,0.00013277,2]
[408576926,1773901842102,-266.07731429,0.00013277,2]
[408576927,1773901842112,-250.0,0.00013277,2]
[408576928,1773901842123,-500.0,0.00013277,2]
[408576929,1773901842133,-250.0,0.00013277,2]
[408576930,1773901842142,-500.0,0.00013277,2]
[408576931,1773901842152,-250.0,0.00013277,2]
[408576932,1773901842161,-500.0,0.00013277,2]
[408576933,1773901842171,-250.0,0.00013277,2]
[408576934,1773901842180,-500.0,0.00013277,2]
[408576935,1773901842190,-250.0,0.00013277,2]
[408576936,1773901842200,-500.0,0.00013277,2]
[408576937,1773901842210,-250.0,0.00013277,2]
[408576938,1773901842220,-500.0,0.00013277,2]
[408576939,1773901842230,-250.0,0.00013277,2]
[408576940,1773901842240,-500.0,0.00013277,2]
[408576941,1773901842252,-151.0,0.00013277,2]
[408576942,1773901842262,-500.0,0.00013277,2]
[408576943,1773901842271,-151.0,0.00013277,2]
[408576944,1773901842283,-151.0,0.00013277,2]
[408576945,1773901842292,-151.0,0.00013277,2]
[408576946,1773901842302,-151.0,0.00013277,2]
[408576947,1773901842311,-151.0,0.00013277,2]
[408576948,1773901842323,-151.0,0.00013277,2]
[408576949,1773901842333,-225.91421318,0.00013277,2]
[408576950,1773901842343,-151.0,0.00013277,2]
[408576951,1773901842352,-669.13395939,0.00013277,2]
[408576952,1773901842362,-562.34804496,0.00013332,2]
[408576953,1773901842371,-9211.34798985,0.00013332,2]
[408576954,1773901842380,-151.0,0.00013332,2]
[408576955,1773901842390,-501.0,0.00013333,2]
[408576956,1773901842399,-187.952092,0.00013365,2]
[408576957,1773901842409,-823.0,0.00013371,2]
[408576958,1773901842418,-3292.0,0.00013374,2]
[408576959,1773901842427,-736.0,0.00013374,2]
[408576960,1773901842437,-12899.72705021,0.00013385,2]
[408576961,1773901842446,-9552.16786547,0.00013387,2]
[408576962,1773901842456,-500.0,0.00013421,2]
[408576963,1773901842466,-500.0,0.00013421,2]
[408576964,1773901842476,-153.65437975,0.00013421,2]
[408576965,1773901842485,-1136.0,0.00013421,2]
[408576966,1773901842495,-1136.0,0.00013421,2]
[408576967,1773901842504,-1136.0,0.00013421,2]
[408576968,1773901842513,-1136.0,0.00013421,2]
[408576969,1773901842522,-1136.0,0.00013421,2]
[408576970,1773901842532,-1136.0,0.00013421,2]
[408576971,1773901842541,-1136.0,0.00013421,2]
[408576972,1773901842550,-1136.0,0.00013421,2]
[408576973,1773901842560,-1136.0,0.00013421,2]
[408576974,1773901842569,-1136.0,0.00013421,2]
[408576975,1773901842578,-1136.0,0.00013421,2]
[408576976,1773901842587,-1136.0,0.00013421,2]
[408576977,1773901842597,-1136.0,0.00013421,2]
[408576978,1773901842606,-1136.0,0.00013421,2]
[408576979,1773901842615,-1136.0,0.00013421,2]
[408576980,1773901842624,-1136.0,0.00013421,2]
[408576981,1773901842634,-1136.0,0.00013421,2]
[408576982,1773901842643,-1136.0,0.00013421,2]
[408576983,1773901842652,-1136.0,0.00013421,2]
[408576984,1773901842661,-1136.0,0.00013421,2]
[408576985,1773901842670,-1136.0,0.00013421,2]
[408576986,1773901842680,-1136.0,0.00013421,2]
[408576987,1773901842689,-1136.0,0.00013421,2]
[408576988,1773901842698,-1139.93350754,0.00013421,2]
[408576989,1773901842707,-500.0,0.00013421,2]
[408576990,1773901842716,-500.0,0.00013421,2]
[408576991,1773901842724,-500.0,0.00013421,2]
[408576992,1773901842734,-500.0,0.00013421,2]
[408576993,1773901842744,-500.0,0.00013421,2]
[408576994,1773901842753,-500.0,0.00013421,2]
[408576995,1773901842762,-484.98041623,0.00013421,2]
[408576996,1773901842772,-3240.0,0.00013425,2]
[408576997,1773901842781,-9905.5980765,0.00013442,2]
[408576998,1773901842790,-150.0,0.00013464,2]
[408576999,1773901842799,-1194.75,0.00013474,2]
[408577000,1773901842809,-10272.10520533,0.00013497,2]
[408577001,1773901842818,-334.0,0.00013514,2]
[408577002,1773901842828,-10652.17309792,0.00013552,2]
[408577003,1773901842837,-500.0,0.00013562,2]
[408577004,1773901842846,-1062.0,0.000136,2]
[408577005,1773901842856,-11046.30350255,0.00013607,2]
[408577006,1773901842865,-11455.01673214,0.00013662,2]
[408577007,1773901842874,-502.94227375,0.00013673,2]
[408577008,1773901842883,-574.42695522,0.00013673,2]
[408577009,1773901842892,-503.01696728,0.00013673,2]
[408577010,1773901842902,-500.0,0.00013673,2]
[408577011,1773901842911,-300.07852867,0.00013673,2]
[408577012,1773901842920,-164.13740161,0.00013673,2]
[408577013,1773901842930,-167.41696439,0.00013673,2]
[408577014,1773901842939,-501.33720601,0.00013673,2]
[408577015,1773901842948,-500.0,0.00013673,2]
[408577016,1773901842957,-500.2027226,0.00013673,2]
[408577017,1773901842966,-500.0,0.00013673,2]
[408577018,1773901842975,-500.31068947,0.00013673,2]
[408577019,1773901842985,-501.00729745,0.00013673,2]
[408577020,1773901842994,-500.0,0.00013673,2]
[408577021,1773901843003,-500.0,0.00013673,2]
[408577022,1773901843012,-500.0,0.00013673,2]
[408577023,1773901843022,-500.0,0.00013673,2]
[408577024,1773901843032,-500.0,0.00013673,2]
[408577025,1773901843041,-167.36781104,0.00013673,2]
[408577026,1773901843050,-150.75759761,0.00013695,2]
[408577027,1773901843059,-500.0,0.00013695,2]
[408577028,1773901843068,-500.0,0.00013695,2]
[408577029,1773901843077,-481.94161916,0.00013695,2]
[408577030,1773901843087,-500.0,0.00013695,2]
[408577031,1773901843097,-500.0,0.00013695,2]
[408577032,1773901843106,-500.0,0.00013695,2]
[408577033,1773901843116,-500.0,0.00013695,2]
[408577034,1773901843125,-500.0,0.00013695,2]
[408577035,1773901843135,-500.0,0.00013695,2]
[408577036,1773901843145,-500.0,0.00013695,2]
[408577037,1773901843154,-500.0,0.00013695,2]
[408577038,1773901843164,-500.0,0.00013695,2]
[408577039,1773901843173,-500.0,0.00013695,2]
[408577040,1773901843183,-500.0,0.00013695,2]
[408577041,1773901843192,-500.0,0.00013695,2]
[408577042,1773901843202,-500.0,0.00013695,2]
[408577043,1773901843212,-500.0,0.00013695,2]
[408577044,1773901843221,-500.0,0.00013695,2]
[408577045,1773901843231,-520.81453038,0.00013695,2]
[408577046,1773901843243,-500.0,0.00013695,2]
[408577047,1773901843252,-500.0,0.00013695,2]
[408577048,1773901843261,-500.0,0.00013695,2]
[408577049,1773901843271,-500.0,0.00013695,2]
[408577050,1773901843281,-500.0,0.00013695,2]
[408577051,1773901843290,-500.0,0.00013695,2]
[408577052,1773901843300,-500.0,0.00013695,2]
[408577054,1773901843309,-500.0,0.00013695,2]
[408577055,1773901843320,-500.0,0.00013695,2]
[408577056,1773901843337,-214.94352647,0.00013695,2]
[408577057,1773901843346,-500.0,0.00013695,2]
[408577058,1773901843355,-500.0,0.00013695,2]
[408577059,1773901843365,-500.0,0.00013695,2]
[408577060,1773901843374,-500.0,0.00013695,2]
[408577061,1773901843383,-500.0,0.00013695,2]
[408577062,1773901843393,-500.0,0.00013695,2]
[408577063,1773901843402,-500.0,0.00013695,2]
[408577064,1773901843411,-500.0,0.00013695,2]
[408577066,1773901843420,-500.0,0.00013695,2]
[408577067,1773901843429,-500.0,0.00013695,2]
[408577069,1773901843438,-500.0,0.00013695,2]
[408577070,1773901843446,-500.0,0.00013695,2]
[408577071,1773901843457,-500.0,0.00013695,2]
[408577072,1773901843467,-500.0,0.00013695,2]
[408577073,1773901843477,-500.0,0.00013695,2]
[408577074,1773901843488,-255.16033753,0.00013695,2]
[408577075,1773901843498,-500.0,0.00013695,2]
[408577076,1773901843507,-500.0,0.00013695,2]
[408577077,1773901843516,-623.58090901,0.00013695,2]
[408577078,1773901843525,-500.0,0.00013695,2]
[408577079,1773901843535,-500.0,0.00013695,2]
[408577080,1773901843544,-500.0,0.00013695,2]
[408577081,1773901843553,-500.0,0.00013695,2]
[408577083,1773901843562,-500.0,0.00013695,2]
[408577085,1773901843572,-500.0,0.00013695,2]
[408577086,1773901843582,-500.0,0.00013695,2]
[408577087,1773901843592,-500.0,0.00013695,2]
[408577088,1773901843602,-500.0,0.00013695,2]
[408577089,1773901843611,-500.0,0.00013695,2]
[408577090,1773901843621,-500.0,0.00013695,2]
[408577091,1773901843631,-500.0,0.00013695,2]
[408577092,1773901843640,-500.0,0.00013695,2]
[408577093,1773901843650,-500.0,0.00013695,2]
[408577094,1773901843658,-500.0,0.00013695,2]
[408577095,1773901843667,-500.0,0.00013695,2]
[408577096,1773901843677,-500.0,0.00013695,2]
[408577097,1773901843686,-364.3001579,0.00013695,2]
[408577098,1773901843695,-261.00219026,0.00013695,2]
[408577099,1773901843704,-435.0,0.00013695,2]
[408577100,1773901843713,-435.0,0.00013695,2]
[408577101,1773901843721,-435.0,0.00013695,2]
[408577102,1773901843730,-500.0,0.00013695,2]
[408577103,1773901843739,-435.0,0.00013695,2]
[408577104,1773901843749,-435.0,0.00013695,2]
[408577105,1773901843758,-435.0,0.00013695,2]
[408577106,1773901843766,-435.0,0.00013695,2]
[408577107,1773901843777,-435.0,0.00013695,2]
[408577108,1773901843786,-500.0,0.00013695,2]
[408577109,1773901843797,-257.5653502,0.00013695,2]
[408577110,1773901843808,-435.0,0.00013695,2]
[408577111,1773901843818,-435.0,0.00013695,2]
[408577112,1773901843830,-435.0,0.00013695,2]
[408577113,1773901843839,-435.0,0.00013695,2]
[408577114,1773901843849,-435.0,0.00013695,2]
[408577115,1773901843858,-435.0,0.00013695,2]
[408577116,1773901843868,-435.0,0.00013695,2]
[408577117,1773901843878,-435.0,0.00013695,2]
[408577118,1773901843889,-435.0,0.00013695,2]
[408577119,1773901843900,-435.0,0.00013695,2]
[408577120,1773901843911,-435.0,0.00013695,2]
[408577121,1773901843922,-435.0,0.00013695,2]
[408577122,1773901843932,-435.0,0.00013695,2]
[408577123,1773901843942,-435.0,0.00013695,2]
[408577124,1773901843951,-435.0,0.00013695,2]
[408577125,1773901843961,-445.0,0.00013695,2]
[408577126,1773901843970,-500.0,0.00013695,2]
[408577127,1773901844033,-500.0,0.00013695,2]
[408577128,1773901844042,-500.0,0.00013695,2]
[408577129,1773901844051,-500.0,0.00013695,2]
[408577130,1773901844059,-500.0,0.00013695,2]
[408577131,1773901844068,-500.0,0.00013695,2]
[408577132,1773901844077,-500.0,0.00013695,2]
[408577133,1773901844086,-500.0,0.00013695,2]
[408577134,1773901844095,-500.0,0.00013695,2]
[408577135,1773901844104,-500.0,0.00013695,2]
[408577136,1773901844113,-500.0,0.00013695,2]
[408577137,1773901844122,-500.0,0.00013695,2]
[408577138,1773901844131,-206.79155437,0.00013695,2]
[408577139,1773901844140,-500.0,0.00013695,2]
[408577140,1773901844149,-500.0,0.00013695,2]
[408577141,1773901844159,-500.0,0.00013695,2]
[408577142,1773901844168,-500.0,0.00013695,2]
[408577143,1773901844177,-500.0,0.00013695,2]
[408577144,1773901844186,-500.0,0.00013695,2]
[408577145,1773901844195,-500.0,0.00013695,2]
[408577146,1773901844204,-500.0,0.00013695,2]
[408577147,1773901844213,-500.0,0.00013695,2]
[408577148,1773901844222,-500.0,0.00013695,2]
[408577149,1773901844231,-500.0,0.00013695,2]
[408577150,1773901844241,-320.05942927,0.00013695,2]
[408577151,1773901844255,-500.0,0.00013695,2]
[408577152,1773901844264,-500.0,0.00013695,2]
[408577153,1773901844273,-500.0,0.00013695,2]
[408577154,1773901844283,-909.0,0.00013695,2]
[408577155,1773901844293,-500.0,0.00013695,2]
[408577156,1773901844303,-500.0,0.00013695,2]
[408577157,1773901844312,-909.0,0.00013695,2]
[408577158,1773901844323,-500.0,0.00013695,2]
[408577159,1773901844332,-500.0,0.00013695,2]
[408577160,1773901844341,-500.0,0.00013695,2]
[408577161,1773901844351,-500.0,0.00013695,2]
[408577162,1773901844361,-909.0,0.00013695,2]
[408577163,1773901844370,-500.0,0.00013695,2]
[408577164,1773901844380,-500.0,0.00013695,2]
[408577165,1773901844389,-909.0,0.00013695,2]
[408577166,1773901844398,-500.0,0.00013695,2]
[408577167,1773901844407,-500.0,0.00013695,2]
[408577168,1773901844416,-500.0,0.00013695,2]
[408577169,1773901844425,-909.0,0.00013695,2]
[408577170,1773901844434,-500.0,0.00013695,2]
[408577171,1773901844443,-500.0,0.00013695,2]